bitfinex-derivatives/quotes_SOLF0:USTF0_20250413
["timestamp","ask_amount","ask_price","bid_price","bid_amount"]
[1744574843463,7.7584,128.92,128.9,1.55159038]
[1744574843665,66.0184,128.92,128.9,1.55159038]
[1744574843961,66.06855077,128.92,128.9,1.60102858]
[1744574844265,7.7587,128.91,128.9,1.60102858]
[1744574844858,0.05015077,128.92,128.9,9.36012858]
[1744574845157,0.05015077,128.92,128.9,1.60102858]
[1744574845362,56.68,128.97,128.91,22.62501387]
[1744574845563,56.68,128.97,128.91,28.36068388]
[1744574845762,56.68,128.97,128.94,7.7566]
[1744574846365,56.73663872,128.97,128.94,7.8053925]
[1744574846861,56.73663872,128.97,128.94,0.0487925]
[1744574847062,0.05663872,128.97,128.94,0.0487925]
[1744574847467,0.05663872,128.97,128.95,7.7559]
[1744574847667,0.05663872,128.97,128.94,0.0487925]
[1744574848268,7.81173872,128.97,128.94,7.8052925]
[1744574848767,7.7558,128.96,128.94,0.0487925]
[1744574849567,7.81203872,128.97,128.94,0.0487925]
[1744574849768,0.05663872,128.97,128.94,7.8052925]
[1744574850267,0.05663872,128.97,128.96,7.7557]
[1744574851664,670.96,129.01,128.99,7.7534]
[1744574852168,56.68,129.01,128.95,2.011]
[1744574852370,56.68,129.01,129.0,7.7533]
[1744574852565,56.68,129.05,128.97,22.62501387]
[1744574852770,56.68,129.05,128.98,3.604128]
[1744574852959,614.42,129.07,129.04,7.7509]
[1744574853369,622.22599559,129.07,129.04,7.81010354]
[1744574853572,0.05679559,129.07,129.04,0.05920354]
[1744574854370,0.05679559,129.07,129.06,7.7497]
[1744574856372,0.05679559,129.07,129.05,2.0368]
[1744574856373,0.05679559,129.07,129.05,9.7866]
[1744574856568,0.05679559,129.07,129.04,0.05920354]
[1744574856962,0.05679559,129.07,129.04,7.80980354]
[1744574857177,0.05679559,129.07,129.04,0.05920354]
[1744574857470,7.7502,129.06,129.04,0.05920354]
[1744574857672,0.05679559,129.07,129.04,0.05920354]
[1744574857873,2.08479559,129.07,129.04,0.05920354]
[1744574858171,7.7513,129.04,129.0,7.7531]
[1744574858372,4.0149,129.07,128.98,1.550628]
[1744574858572,7.7523,129.02,128.98,1.550628]
[1744574858773,54.92,129.03,128.98,1.550628]
[1744574859274,0.05112688,129.02,128.99,0.05638085]
[1744574860072,7.80352688,129.02,128.99,0.05638085]
[1744574860573,0.05112688,129.02,128.99,0.05638085]
[1744574861273,7.7531,129.01,128.99,0.05638085]
[1744574861473,0.05112688,129.02,128.99,0.05638085]
[1744574861876,0.05112688,129.02,129.01,7.7527]
[1744574862269,7.7469,129.11,129.01,10.98721781]
[1744574862473,670.8,129.12,129.02,4.77736507]
[1744574862675,670.8,129.12,129.02,1.55014726]
[1744574862876,7.7469,129.11,129.07,7.7491]
[1744574863071,670.8,129.12,129.02,1.55014726]
[1744574863274,2.1216,129.11,129.02,1.55014726]
[1744574863469,0.0586854,129.08,129.06,0.05855753]
[1744574867175,0.0586854,129.08,129.07,7.7491]
[1744574867881,0.0586854,129.08,129.06,7.80795753]
[1744574868476,0.0586854,129.08,129.07,7.7491]
[1744574868872,0.0586854,129.08,129.06,0.05855753]
[1744574869474,7.7502,129.06,129.02,1.55014726]
[1744574869679,58.6884,129.07,129.02,1.55014726]
[1744574869877,56.68,129.07,129.02,1.55014726]
[1744574870074,56.68,129.07,129.04,7.7504]
[1744574870270,56.68,129.07,129.02,1.55014726]
[1744574870680,0.05402747,129.06,129.03,7.80828184]
[1744574870878,0.05402747,129.06,129.03,0.05728184]
[1744574871677,7.7509,129.04,129.03,0.05728184]
[1744574872284,7.7515,129.03,129.02,1.55014726]
[1744574872485,2.0808,129.05,128.95,6.2988]
[1744574872977,7.7532,129.01,128.97,7.755]
[1744574873175,56.68,129.02,128.95,6.2988]
[1744574873373,56.68,129.02,128.95,7.84978875]
[1744574873573,0.0572738,129.0,128.98,0.05886893]
[1744574874084,0.0572738,129.0,128.99,7.7534]
[1744574874880,0.0572738,129.0,128.98,0.05886893]
[1744574875379,7.8105738,129.0,128.98,0.05886893]
[1744574875782,7.7539,128.99,128.98,0.05886893]
[1744574875985,0.0572738,129.0,128.98,0.05886893]
[1744574876485,7.8107738,129.0,128.98,0.05886893]
[1744574876681,0.0572738,129.0,128.98,0.05886893]
[1744574876983,7.7539,128.99,128.98,0.05886893]
[1744574877281,0.0572738,129.0,128.95,1.55098875]
[1744574877683,7.7552,128.97,128.95,1.55098875]
[1744574878280,7.7557,128.96,128.95,1.55098875]
[1744574878485,7.7557,128.96,128.95,1.60912394]
[1744574879185,62.84533221,128.97,128.95,1.60912394]
[1744574879389,55.08993221,128.97,128.95,1.60912394]
[1744574880481,55.08993221,128.97,128.95,9.36512394]
[1744574880686,0.04993221,128.97,128.95,1.60912394]
[1744574881382,7.7557,128.96,128.95,1.60912394]
[1744574881588,0.04993221,128.97,128.95,1.60912394]
[1744574881888,7.80533221,128.97,128.95,1.60912394]
[1744574882182,0.04993221,128.97,128.95,1.60912394]
[1744574882489,55.04,128.96,128.89,2.0168]
[1744574883089,55.04,128.96,128.93,7.7572]
[1744574883282,57.0509,129.0,128.89,2.0168]
[1744574883487,0.05794166,128.96,128.93,0.05251263]
[1744574884083,0.05794166,128.96,128.94,7.7569]
[1744574884388,0.05794166,128.96,128.93,0.05251263]
[1744574884582,7.7567,128.95,128.93,0.05251263]
[1744574885089,0.05794166,128.96,128.93,0.05251263]
[1744574885289,0.05794166,128.96,128.93,7.80951263]
[1744574885290,7.81394166,128.96,128.93,7.80951263]
[1744574885483,7.81394166,128.96,128.93,0.05251263]
[1744574885989,7.81394166,128.96,128.93,7.80951263]
[1744574886287,7.81394166,128.96,128.93,0.05251263]
[1744574886488,7.81394166,128.96,128.93,7.81001263]
[1744574886688,7.7564,128.95,128.93,0.05251263]
[1744574886888,0.05794166,128.96,128.93,0.05251263]
[1744574887091,0.05794166,128.96,128.93,7.80991263]
[1744574887993,0.05794166,128.96,128.93,0.05251263]
[1744574888494,0.05794166,128.96,128.95,7.7563]
[1744574888891,0.05794166,128.96,128.93,7.80981263]
[1744574889092,0.05794166,128.96,128.93,0.05251263]
[1744574889387,7.81394166,128.96,128.93,0.05251263]
[1744574889584,0.05794166,128.96,128.93,0.05251263]
[1744574889787,7.7567,128.95,128.93,0.05251263]
[1744574890792,7.81394166,128.96,128.93,0.05251263]
[1744574891194,7.81394166,128.96,128.93,7.80991263]
[1744574891385,0.05794166,128.96,128.93,7.80991263]
[1744574891589,0.05794166,128.96,128.93,0.05251263]
[1744574891789,0.05794166,128.96,128.93,7.80971263]
[1744574892287,7.81374166,128.96,128.93,7.80971263]
[1744574892490,0.05794166,128.96,128.93,0.05251263]
[1744574892994,0.05794166,128.96,128.95,7.7563]
[1744574893390,55.04,129.0,128.94,22.62501387]
[1744574893589,55.04,129.0,128.91,22.62501387]
[1744574893792,7.755,128.98,128.91,22.62501387]
[1744574893992,55.04,129.0,128.93,7.757]
[1744574894191,55.04,129.0,128.91,22.62501387]
[1744574894391,7.7555,128.97,128.91,22.62501387]
[1744574894692,7.81382269,128.97,128.94,0.0529313]
[1744574894895,0.05832269,128.97,128.94,7.8094313]
[1744574895692,0.05832269,128.97,128.94,0.0529313]
[1744574895896,7.7561,128.96,128.94,0.0529313]
[1744574896297,0.05832269,128.97,128.94,0.0529313]
[1744574896896,7.81372269,128.97,128.94,0.0529313]
[1744574897404,0.05832269,128.97,128.94,7.8095313]
[1744574898100,7.81342269,128.97,128.94,7.8095313]
[1744574898398,7.81342269,128.97,128.94,0.0529313]
[1744574899295,7.81342269,128.97,128.94,7.8097313]
[1744574899901,7.81352269,128.97,128.94,7.8097313]
[1744574900799,7.81352269,128.97,128.94,0.0529313]
[1744574901194,0.05832269,128.97,128.94,0.0529313]
[1744574901395,0.05832269,128.97,128.94,7.8095313]
[1744574901702,7.81372269,128.97,128.94,0.0529313]
[1744574901901,0.05832269,128.97,128.94,0.0529313]
[1744574902302,0.05832269,128.97,128.94,14.193994]
[1744574902502,0.05832269,128.97,128.94,0.0529313]
[1744574903004,7.756,128.96,128.94,0.0529313]
[1744574903598,0.05832269,128.97,128.9,7.7588]
[1744574903599,14.19938539,128.97,128.9,7.7588]
[1744574903800,16.31848539,128.97,128.89,2.0168]
[1744574903995,2.1191,128.97,128.89,2.0168]
[1744574904196,2.0905,128.98,128.9,14.1410627]
[1744574904402,51.96,128.99,128.9,14.1410627]
[1744574904699,7.7548,128.98,128.94,7.7567]
[1744574904896,0.05639891,128.96,128.94,7.7567]
[1744574906003,0.05639891,128.96,128.93,0.05266453]
[1744574907007,7.81209891,128.96,128.93,0.05266453]
[1744574907708,0.05639891,128.96,128.93,0.05266453]
[1744574908709,0.05639891,128.96,128.94,7.7565]
[1744574909206,0.05639891,128.96,128.95,7.7563]
[1744574910010,51.96,128.99,128.98,7.7545]
[1744574910205,58.2117,129.03,128.96,14.1410627]
[1744574910402,52.5087,129.08,129.0,14.1410627]
[1744574910809,50.46,129.08,129.02,14.1410627]
[1744574911210,0.05597923,129.06,129.04,0.05152007]
[1744574911905,0.05597923,129.06,129.01,1.55026742]
[1744574912110,14.1410627,129.02,128.92,14.1410627]
[1744574912307,7.7536,129.0,128.96,7.7556]
[1744574912512,14.1410627,129.0,128.91,4.1684]
[1744574912706,50.46,129.01,128.92,17.36956388]
[1744574912905,50.46,129.01,128.96,7.7553]
[1744574913312,0.04955974,128.98,128.96,7.7553]
[1744574913710,0.04955974,128.98,128.97,7.7551]
[1744574914615,0.04955974,128.98,128.96,7.7555]
[1744574914809,0.04955974,128.98,128.95,0.04905526]
[1744574915310,0.04955974,128.98,128.96,7.7553]
[1744574916215,0.04955974,128.98,128.97,7.7551]
[1744574919916,0.04955974,128.98,128.95,0.04905526]
[1744574921422,0.04955974,128.98,128.96,7.7555]
[1744574921721,7.80415974,128.98,128.95,0.04905526]
[1744574922119,0.04955974,128.98,128.95,0.04905526]
[1744574922319,7.7551,128.97,128.95,0.04905526]
[1744574922522,0.04955974,128.98,128.95,0.04905526]
[1744574923618,7.7555,128.97,128.95,0.04905526]
[1744574924021,0.04955974,128.98,128.95,0.04905526]
[1744574924320,58.1955,128.97,128.95,0.04905526]
[1744574924521,50.44,128.97,128.95,0.04905526]
[1744574924720,7.7557,128.96,128.95,0.04905526]
[1744574924912,50.44,128.97,128.95,0.04905526]
[1744574925823,50.44,128.97,128.96,7.7557]
[1744574926524,50.44,128.97,128.95,7.80515526]
[1744574926722,50.44,128.97,128.95,0.04905526]
[1744574927625,58.1957,128.97,128.95,0.04905526]
[1744574927925,50.44,128.97,128.95,0.04905526]
[1744574928125,7.7557,128.96,128.95,0.04905526]
[1744574929426,58.1953,128.97,128.95,0.04905526]
[1744574929927,58.1953,128.97,128.95,7.80525526]
[1744574930625,58.1953,128.97,128.95,0.04905526]
[1744574931426,50.44,128.97,128.95,7.80525526]
[1744574931616,50.44,128.97,128.95,0.04905526]
[1744574932025,58.1954,128.97,128.95,0.04905526]
[1744574932226,50.44,128.97,128.95,0.04905526]
[1744574932928,50.44,128.97,128.9,2.1583]
[1744574933224,7.7566,128.95,128.92,7.7577]
[1744574934127,7.81564123,128.95,128.92,7.80997876]
[1744574938525,0.05904123,128.95,128.93,7.7575]
[1744574939027,0.05904123,128.95,128.92,7.81007876]
[1744574939227,7.81534123,128.95,128.92,7.81007876]
[1744574943127,0.05904123,128.95,128.94,7.7569]
[1744574943328,623.3124725,129.01,128.94,3.24009542]
[1744574943526,9.0524725,129.01,128.97,9.0524725]
[1744574943832,9.0524725,129.01,128.95,10.60346125]
[1744574944131,7.7539,128.99,128.96,7.7553]
[1744574944330,9.0524725,128.97,128.95,1.55098875]
[1744574944528,58.3924725,128.97,128.96,0.05566379]
[1744574945631,66.1475725,128.97,128.96,0.05566379]
[1744574946232,58.3924725,128.97,128.96,0.05566379]
[1744574946432,49.34,128.97,128.96,0.05566379]
[1744574947128,0.05045574,128.99,128.96,0.05566379]
[1744574947332,49.34,129.01,128.98,9.0524725]
[1744574947534,9.0524725,129.03,128.98,9.0524725]
[1744574947736,16.8041725,129.03,129.0,7.753]
[1744574948135,16.8041725,129.03,128.98,9.0524725]
[1744574948336,16.8041725,129.03,128.99,7.7536]
[1744574948535,0.05572083,129.02,128.99,0.05310137]
[1744574948834,7.80782083,129.02,128.99,0.05310137]
[1744574949029,9.0524725,129.01,128.99,0.05310137]
[1744574949235,14.13485984,129.01,128.99,0.05310137]
[1744574949430,7.7533,129.0,128.99,0.05310137]
[1744574949735,49.34,129.0,128.95,1.55098875]
[1744574949935,14.13485984,128.99,128.95,1.55098875]
[1744574950237,7.7549,128.98,128.95,1.55098875]
[1744574950837,7.8129767,128.98,128.95,1.60102199]
[1744574952435,0.0580767,128.98,128.95,1.60102199]
[1744574952645,0.0580767,128.98,128.96,3.23985515]
[1744574952839,0.0580767,128.98,128.97,3.23985515]
[1744574953037,0.0580767,128.98,128.97,7.7551]
[1744574953833,0.0580767,128.98,128.96,7.7554]
[1744574954238,0.0580767,128.98,128.97,7.7551]
[1744574956737,0.0580767,128.98,128.96,7.7555]
[1744574956943,0.0580767,128.98,128.95,1.60102199]
[1744574957242,7.7551,128.97,128.95,1.60102199]
[1744574957543,0.0580767,128.98,128.95,1.60102199]
[1744574958442,7.7556,128.97,128.95,1.60102199]
[1744574959343,0.0580767,128.98,128.95,1.60102199]
[1744574959843,7.8125767,128.98,128.95,1.60102199]
[1744574960342,7.7554,128.97,128.95,1.60102199]
[1744574961246,0.0580767,128.98,128.95,1.60102199]
[1744574961847,7.8128767,128.98,128.95,1.60102199]
[1744574962050,0.0580767,128.98,128.95,1.60102199]
[1744574962449,7.8129767,128.98,128.95,9.35722199]
[1744574962651,0.0580767,128.98,128.95,1.60102199]
[1744574962949,2.0164767,128.98,128.95,1.60102199]
[1744574963140,7.7551,128.97,128.95,1.60102199]
[1744574963649,7.7557,128.96,128.95,1.60102199]
[1744574964043,7.76,128.96,128.89,18.55435]
[1744574964241,14.13485984,128.9,128.89,18.55435]
[1744574964849,21.89415984,128.9,128.89,18.55435]
[1744574965149,49.34,128.91,128.89,18.55435]
[1744574965351,49.39498171,128.91,128.89,18.55435]
[1744574965652,49.39498171,128.91,128.9,7.7593]
[1744574965949,0.05498171,128.91,128.9,7.7593]
[1744574967048,0.05498171,128.91,128.89,26.31395]
[1744574967252,0.05498171,128.91,128.89,18.55435]
[1744574967647,0.05498171,128.91,128.9,7.7593]
[1744574968053,0.05498171,128.91,128.89,18.55435]
[1744574968353,0.05498171,128.91,128.89,26.31385]
[1744574968848,0.05498171,128.91,128.89,18.55435]
[1744574969353,0.05498171,128.91,128.89,26.31425]
[1744574969649,0.05498171,128.91,128.89,18.55435]
[1744574969952,0.05498171,128.91,128.9,7.7593]
[1744574971248,49.34,128.95,128.93,7.7574]
[1744574971656,49.34,128.95,128.92,7.7578]
[1744574971950,2.0516,129.02,128.89,382.55435]
[1744574972155,51.2853,129.03,128.95,14.13485984]
[1744574972355,49.28,129.03,128.96,9.38341835]
[1744574972554,49.28,129.03,128.96,6.2346]
[1744574972754,7.753,129.01,128.97,7.7547]
[1744574972946,49.28,129.03,128.96,6.2346]
[1744574973146,49.28,129.03,129.01,7.7523]
[1744574973348,49.28,129.03,128.97,14.13485984]
[1744574973552,49.3391348,129.03,129.01,0.0512957]
[1744574973751,49.3391348,129.03,129.02,7.7521]
[1744574973949,49.3391348,129.03,129.01,0.0512957]
[1744574974756,49.3391348,129.03,129.01,7.8035957]
[1744574975358,49.3391348,129.03,129.02,7.7521]
[1744574977549,49.3391348,129.03,129.01,7.8036957]
[1744574977753,49.3391348,129.03,129.01,0.0512957]
[1744574978662,49.3391348,129.03,129.01,7.8036957]
[1744574979057,49.3391348,129.03,129.01,0.0512957]
[1744574979562,49.3391348,129.03,128.96,364.0]
[1744574979760,26.58414766,129.02,128.91,370.1471]
[1744574979957,28.71094766,129.02,128.92,3.14093692]
[1744574980157,22.60484766,128.96,128.89,45.80281442]
[1744574980365,49.26,128.95,128.9,18.39889844]
[1744574980662,7.7572,128.94,128.9,9.31059038]
[1744574980864,7.81001552,128.94,128.91,0.0591856]
[1744574981067,7.7581,128.92,128.91,0.0591856]
[1744574981362,22.60484766,128.93,128.89,18.55435]
[1744574981558,7.7582,128.92,128.89,18.55435]
[1744574981758,22.60484766,128.93,128.89,18.55435]
[1744574982063,30.36264766,128.93,128.89,18.55435]
[1744574982360,0.05281552,128.94,128.89,18.55435]
[1744574982562,0.05281552,128.94,128.9,0.05348143]
[1744574982861,7.81001552,128.94,128.9,0.05348143]
[1744574983253,0.05281552,128.94,128.9,0.05348143]
[1744574985660,7.758,128.93,128.9,0.05348143]
[1744574985860,0.05281552,128.94,128.9,0.05348143]
[1744574986061,0.05281552,128.94,128.92,7.7576]
[1744574986360,0.05281552,128.94,128.9,0.05348143]
[1744574988065,0.05281552,128.94,128.91,7.7583]
[1744574988562,0.05281552,128.94,128.9,0.05348143]
[1744574989770,7.758,128.93,128.9,0.05348143]
[1744574990969,7.80991552,128.94,128.9,7.81278143]
[1744574991469,7.80991552,128.94,128.9,0.05348143]
[1744574991670,0.05281552,128.94,128.9,0.05348143]
[1744574992565,0.05281552,128.94,128.9,7.81248143]
[1744574992864,7.81011552,128.94,128.9,7.81248143]
[1744574993873,7.7575,128.93,128.9,7.81248143]
[1744574994073,0.05281552,128.94,128.9,0.05348143]
[1744574994273,24.59014766,128.93,128.89,18.55435]
[1744574994468,24.59014766,128.93,128.84,7.7627]
[1744574994674,24.59014766,128.93,128.83,2.1205]
[1744574994874,22.60484766,128.9,128.83,2.1205]
[1744574995073,49.28,128.89,128.82,7.7638]
[1744574995274,49.28,128.89,128.8,4.0161]
[1744574995574,7.7639,128.83,128.79,2.1205]
[1744574995766,7.7639,128.83,128.79,9.8864]
[1744574995972,7.7639,128.83,128.8,0.05858665]
[1744574996165,7.81459536,128.82,128.8,0.05858665]
[1744574996367,0.04999536,128.82,128.8,0.05858665]
[1744574997176,7.7647,128.81,128.8,0.05858665]
[1744574997977,0.04999536,128.82,128.72,121.9425718]
[1744574998176,637.28484766,128.81,128.72,74.6341718]
[1744574998378,637.28484766,128.81,128.75,7.768]
[1744574998576,7.7663,128.79,128.72,74.6341718]
[1744574998778,56.9463,128.79,128.72,74.6341718]
[1744574998978,56.9463,128.79,128.74,7.7689]
[1744574999171,0.04885893,128.77,128.74,7.7689]
[1744574999776,0.04885893,128.77,128.75,7.7683]
[1744574999977,0.04885893,128.77,128.72,1.9716]
[1744575000171,49.18,128.79,128.78,7.7665]
[1744575000974,49.18,128.79,128.74,7.7685]
[1744575001180,49.18,128.79,128.73,1.5536394]
[1744575001380,0.05923361,128.78,128.75,0.04885893]
[1744575001575,0.05923361,128.78,128.77,7.7668]
[1744575002382,0.05923361,128.78,128.76,7.7675]
[1744575002571,0.05923361,128.78,128.75,0.04885893]
[1744575002882,7.82583361,128.78,128.75,0.04885893]
[1744575003582,7.7672,128.77,128.75,0.04885893]
[1744575003884,0.05923361,128.78,128.75,0.04885893]
[1744575004186,7.82593361,128.78,128.75,0.04885893]
[1744575004380,0.05923361,128.78,128.75,0.04885893]
[1744575005480,7.82623361,128.78,128.75,0.04885893]
[1744575005681,0.05923361,128.78,128.75,0.04885893]
[1744575006179,7.7676,128.77,128.75,0.04885893]
[1744575007081,7.7677,128.76,128.75,0.04885893]
[1744575007290,0.05923361,128.78,128.73,1.5536394]
[1744575007488,2.03723361,128.78,128.73,1.5536394]
[1744575007688,7.7679,128.76,128.73,1.5536394]
[1744575008389,2.03723361,128.78,128.73,1.5536394]
[1744575008590,22.60484766,128.76,128.73,1.5536394]
[1744575008787,22.60484766,128.76,128.67,4.0681]
[1744575008989,7.7705,128.72,128.68,7.7723]
[1744575009283,49.22,128.72,128.59,364.0]
[1744575009483,22.60484766,128.7,128.61,6.4044]
[1744575009688,0.05286347,128.67,128.61,2.1525]
[1744575009884,49.22,128.66,128.61,2.1525]
[1744575010279,0.05286347,128.67,128.61,2.1525]
[1744575011091,0.05286347,128.67,128.66,7.7738]
[1744575011590,49.22,128.7,128.69,7.772]
[1744575011995,49.22,128.7,128.62,22.60484766]
[1744575012188,49.22,128.7,128.67,7.7726]
[1744575012494,49.22,128.7,128.62,386.60484766]
[1744575012694,49.27743387,128.7,128.67,0.05143513]
[1744575012896,49.22,128.7,128.68,7.7722]
[1744575013194,49.27664026,128.7,128.68,7.7722]
[1744575013794,49.27664026,128.7,128.69,7.772]
[1744575013994,0.05664026,128.7,128.69,7.772]
[1744575016497,615.08,128.73,128.72,7.7701]
[1744575016698,49.24,128.74,128.72,7.7701]
[1744575017589,49.24,128.74,128.73,7.7695]
[1744575017795,0.04899785,128.74,128.73,7.7695]
[1744575018099,0.04899785,128.74,128.72,0.05322949]
[1744575018896,49.24,128.73,128.66,4.2131]
[1744575019098,22.60484766,128.7,128.62,364.0]
[1744575019298,22.60484766,128.7,128.6,4.1847]
[1744575019694,7.7726,128.68,128.63,7.7756]
[1744575019899,49.24,128.68,128.6,4.1847]
[1744575020098,0.05281534,128.67,128.64,0.04985387]
[1744575020300,22.657663,128.67,128.64,0.04985387]
[1744575020498,7.7738,128.66,128.64,0.04985387]
[1744575020696,22.657663,128.67,128.64,0.04985387]
[1744575021098,7.7744,128.65,128.64,0.04985387]
[1744575021294,22.657663,128.67,128.64,0.04985387]
[1744575022302,22.657663,128.67,128.58,2.0081]
[1744575022501,7.7753,128.64,128.59,7.7776]
[1744575022697,49.24,128.64,128.58,2.0081]
[1744575023403,0.05139275,128.62,128.6,7.7768]
[1744575023598,0.05139275,128.62,128.58,2.0081]
[1744575024603,0.05139275,128.62,128.6,7.7771]
[1744575025005,0.05139275,128.62,128.58,2.0081]
[1744575025197,0.05139275,128.62,128.61,7.7768]
[1744575025400,49.26,128.67,128.58,3.56355185]
[1744575025601,615.38,128.71,128.59,71.86484766]
[1744575025798,49.26,128.72,128.62,22.60484766]
[1744575026100,49.26,128.72,128.71,7.7708]
[1744575026304,49.26,128.76,128.71,7.7708]
[1744575026806,7.7693,128.74,128.73,0.05849629]
[1744575028000,0.05262994,128.75,128.73,0.05849629]
[1744575028198,49.1,128.8,128.73,0.05849629]
[1744575028399,56.8654,128.8,128.71,22.60484766]
[1744575028605,56.8654,128.8,128.72,1.55376009]
[1744575028906,49.1,128.8,128.76,7.7676]
[1744575029305,0.05727744,128.79,128.77,0.05483005]
[1744575029506,7.82347744,128.79,128.77,0.05483005]
[1744575030005,0.05727744,128.79,128.77,7.82183005]
[1744575030206,0.05727744,128.79,128.77,0.05483005]
[1744575030814,0.05727744,128.79,128.77,7.82163005]
[1744575031011,615.6,128.83,128.77,0.05483005]
[1744575031412,49.1,128.84,128.77,0.05483005]
[1744575032113,0.05203302,128.82,128.77,0.05483005]
[1744575032312,0.05203302,128.82,128.79,7.7659]
[1744575032715,0.05203302,128.82,128.77,0.05483005]
[1744575034211,49.08,128.88,128.77,386.65967771]
[1744575034421,49.08,128.88,128.8,22.60484766]
[1744575034719,7.7612,128.87,128.83,7.7633]
[1744575034917,49.08,128.88,128.81,1.55267448]
[1744575035419,71.68484766,128.88,128.83,0.05480891]
[1744575035717,0.05980685,128.86,128.83,0.05480891]
[1744575036617,7.7628,128.85,128.83,0.05480891]
[1744575037319,7.7629,128.84,128.83,0.05480891]
[1744575037719,22.60484766,128.85,128.81,1.55267448]
[1744575037920,22.60484766,128.82,128.72,36.33677248]
[1744575038419,7.7686,128.75,128.71,4.162]
[1744575038820,0.05037063,128.74,128.72,0.05394199]
[1744575039221,615.22,128.81,128.72,0.05394199]
[1744575039520,615.22,128.81,128.71,26.76684766]
[1744575039715,615.22,128.81,128.71,4.162]
[1744575039909,7.7665,128.78,128.73,7.7693]
[1744575040219,615.22,128.81,128.73,7.7693]
[1744575040419,0.05399354,128.77,128.74,0.05724679]
[1744575040617,7.7683,128.76,128.74,0.05724679]
[1744575041922,7.7683,128.75,128.74,0.05724679]
[1744575042523,49.13399354,128.77,128.74,0.05724679]
[1744575043322,7.7683,128.75,128.74,0.05724679]
[1744575044425,7.7705,128.72,128.68,7.7721]
[1744575044617,49.08,128.77,128.66,6.1249]
[1744575044823,49.08,128.77,128.66,7.67938468]
[1744575045022,7.7691,128.74,128.7,7.771]
[1744575045419,49.08,128.77,128.67,1.55436387]
[1744575045625,0.05541388,128.73,128.71,0.05493887]
[1744575046827,0.05541388,128.73,128.72,7.7697]
[1744575047126,49.08,128.77,128.72,7.7697]
[1744575047426,49.08,128.83,128.73,22.60484766]
[1744575047623,49.08,128.83,128.74,4.0559]
[1744575047824,49.08,128.83,128.75,1.55339805]
[1744575048525,0.05703734,128.8,128.78,0.05020375]
[1744575050029,0.05703734,128.8,128.78,7.81630375]
[1744575050223,0.05703734,128.8,128.78,0.05020375]
[1744575051324,0.05703734,128.8,128.78,7.81640375]
[1744575051529,0.05703734,128.8,128.78,0.05020375]
[1744575052032,0.05703734,128.8,128.78,7.81670375]
[1744575052330,0.05703734,128.8,128.78,0.05020375]
[1744575052527,7.82263734,128.8,128.78,0.05020375]
[1744575052929,0.05703734,128.8,128.78,0.05020375]
[1744575053231,7.7659,128.79,128.78,0.05020375]
[1744575053433,0.05703734,128.8,128.75,1.55339805]
[1744575053730,22.60484766,128.78,128.7,9.8352]
[1744575053925,22.60484766,128.78,128.66,87.43367248]
[1744575054124,22.60484766,128.78,128.66,89.46947248]
[1744575054329,7.7699,128.73,128.69,7.7716]
[1744575054630,0.05978518,128.73,128.71,0.05118697]
[1744575054930,0.05978518,128.73,128.68,22.60484766]
[1744575055126,0.05978518,128.73,128.71,0.05958162]
[1744575056128,7.82948518,128.73,128.71,0.05958162]
[1744575056430,0.05978518,128.73,128.71,0.05958162]
[1744575057133,49.08,128.77,128.71,0.05958162]
[1744575058335,0.05331567,128.75,128.71,0.05958162]
[1744575058634,0.05331567,128.75,128.7,22.60484766]
[1744575058837,0.05331567,128.75,128.74,7.7689]
[1744575059338,48.9,128.81,128.78,7.7665]
[1744575059530,664.16,128.85,128.73,24.71774766]
[1744575060136,7.7642,128.82,128.79,7.7656]
[1744575060530,7.7648,128.81,128.79,0.05946461]
[1744575060939,0.0509943,128.82,128.79,0.05946461]
[1744575061942,0.0509943,128.82,128.71,71.50484766]
[1744575062237,22.60484766,128.82,128.7,366.0956]
[1744575062437,22.60484766,128.79,128.7,2.0956]
[1744575062638,48.9,128.78,128.67,85.23677248]
[1744575062839,50.2571,128.78,128.67,87.33237248]
[1744575063232,0.05093991,128.74,128.71,0.05884152]
[1744575063634,0.05093991,128.74,128.71,7.82904152]
[1744575064336,7.7697,128.73,128.71,0.05884152]
[1744575064540,0.05093991,128.74,128.71,0.05884152]
[1744575064839,0.05093991,128.74,128.72,7.7698]
[1744575065440,0.05093991,128.74,128.71,0.05884152]
[1744575065640,0.05093991,128.74,128.73,7.7695]
[1744575069841,615.26,128.85,128.73,35.05883429]